fUST/lending_fUST_20250704
["ID","MTS","AMOUNT","RATE_DAILY","PERIOD"]
[369469077,1751586648093,-180.68120562,0.00016438,2]
[369469078,1751586648102,-460.0,0.00016438,2]
[369469080,1751586648112,-460.0,0.00016438,2]
[369469082,1751586648121,-460.0,0.00016438,2]
[369469084,1751586648131,-460.0,0.00016438,2]
[369469086,1751586648140,-473.12,0.00016438,2]
[369469088,1751586648150,-500.0,0.00016438,2]
[369469090,1751586648160,-500.0,0.00016438,2]
[369469092,1751586648172,-500.0,0.00016438,2]
[369469094,1751586648181,-172.01664397,0.00016438,2]
[369469096,1751586648191,-460.0,0.00016438,2]
[369469098,1751586648201,-460.0,0.00016438,2]
[369469100,1751586648210,-460.0,0.00016438,2]
[369469102,1751586648220,-460.0,0.00016438,2]
[369469104,1751586648229,-460.0,0.00016438,2]
[369469106,1751586648239,-962.66,0.00016438,2]
[369469108,1751586648248,-460.0,0.00016438,2]
[369469110,1751586648258,-460.0,0.00016438,2]
[369469112,1751586648267,-460.0,0.00016438,2]
[369469114,1751586648278,-596.42,0.00016438,2]
[369469116,1751586648288,-460.0,0.00016438,2]
[369469118,1751586648298,-796.47,0.00016438,2]
[369469120,1751586648307,-460.0,0.00016438,2]
[369469122,1751586648317,-460.0,0.00016438,2]
[369469124,1751586648326,-460.0,0.00016438,2]
[369469126,1751586648336,-460.0,0.00016438,2]
[369469128,1751586648346,-460.0,0.00016438,2]
[369469130,1751586648356,-460.0,0.00016438,2]
[369469132,1751586648366,-460.0,0.00016438,2]
[369469134,1751586648375,-460.0,0.00016438,2]
[369469136,1751586648385,-460.0,0.00016438,2]
[369469138,1751586648394,-460.0,0.00016438,2]
[369469140,1751586648404,-460.0,0.00016438,2]
[369469142,1751586648413,-460.0,0.00016438,2]
[369469144,1751586648423,-460.0,0.00016438,2]
[369469146,1751586648433,-460.0,0.00016438,2]
[369469148,1751586648442,-460.0,0.00016438,2]
[369469150,1751586648452,-460.0,0.00016438,2]
[369469152,1751586648461,-460.0,0.00016438,2]
[369469154,1751586648470,-460.0,0.00016438,2]
[369469156,1751586648480,-460.0,0.00016438,2]
[369469159,1751586648491,-460.0,0.00016438,2]
[369469161,1751586648501,-460.0,0.00016438,2]
[369469163,1751586648510,-465.01927479,0.00016438,2]
[369469165,1751586648520,-412.6950431,0.00016438,2]
[369469167,1751586648529,-540.0,0.00016438,2]
[369469169,1751586648538,-542.1,0.00016438,2]
[369469171,1751586648547,-460.0,0.00016438,2]
[369469172,1751586648557,-533.75,0.00016438,2]
[369469174,1751586648567,-460.0,0.00016438,2]
[369469176,1751586648576,-460.0,0.00016438,2]
[369469178,1751586648586,-460.0,0.00016438,2]
[369469181,1751586648595,-460.0,0.00016438,2]
[369469182,1751586648605,-460.0,0.00016438,2]
[369469184,1751586648614,-461.63871391,0.00016438,2]
[369469187,1751586648625,-1400.06,0.00016438,2]
[369469188,1751586648635,-1190.85,0.00016438,2]
[369469190,1751586648645,-460.0,0.00016438,2]
[369469193,1751586648654,-464.7428032,0.00016438,2]
[369469195,1751586648664,-460.0,0.00016438,2]
[369469196,1751586648674,-460.0,0.00016438,2]
[369469198,1751586648683,-451.42384818,0.00016438,2]
[369469218,1751586648852,-460.0,0.00016438,2]
[369469220,1751586648864,-460.0,0.00016438,2]
[369469222,1751586648875,-460.0,0.00016438,2]
[369469224,1751586648885,-460.0,0.00016438,2]
[369469226,1751586648894,-460.0,0.00016438,2]
[369469228,1751586648904,-460.0,0.00016438,2]
[369469230,1751586648914,-460.0,0.00016438,2]
[369469232,1751586648924,-461.73111576,0.00016438,2]
[369469234,1751586648934,-460.0,0.00016438,2]
[369469236,1751586648944,-2871.17,0.00016438,2]
[369469238,1751586648954,-460.0,0.00016438,2]
[369469240,1751586648964,-460.0,0.00016438,2]
[369469242,1751586648974,-460.0,0.00016438,2]
[369469244,1751586648984,-460.0,0.00016438,2]
[369469247,1751586648994,-460.0,0.00016438,2]
[369469248,1751586649003,-460.0,0.00016438,2]
[369469250,1751586649013,-460.0,0.00016438,2]
[369469253,1751586649024,-460.0,0.00016438,2]
[369469255,1751586649033,-460.0,0.00016438,2]
[369469257,1751586649043,-461.21557875,0.00016438,2]
[369469259,1751586649052,-460.0,0.00016438,2]
[369469261,1751586649062,-2064.72,0.00016438,2]
[369469263,1751586649071,-460.0,0.00016438,2]
[369469265,1751586649080,-460.0,0.00016438,2]
[369469267,1751586649089,-163.68605377,0.00016438,2]
[369469268,1751586649099,-572.02,0.00016438,2]
[369469270,1751586649109,-461.16994454,0.00016438,2]
[369469273,1751586649118,-460.0,0.00016438,2]
[369469275,1751586649128,-2491.99,0.00016438,2]
[369469277,1751586649138,-460.0,0.00016438,2]
[369469279,1751586649147,-852.31,0.00016438,2]
[369469281,1751586649156,-460.0,0.00016438,2]
[369469283,1751586649166,-470.74,0.00016438,2]
[369469285,1751586649180,-460.0,0.00016438,2]
[369469287,1751586649190,-460.0,0.00016438,2]
[369469289,1751586649199,-460.0,0.00016438,2]
[369469291,1751586649208,-460.0,0.00016438,2]
[369469293,1751586649218,-460.0,0.00016438,2]
[369469295,1751586649228,-460.0,0.00016438,2]
[369469297,1751586649237,-4053.79,0.00016438,2]
[369469299,1751586649247,-585.35,0.00016438,2]
[369469301,1751586649258,-460.0,0.00016438,2]
[369469303,1751586649267,-495.53964708,0.00016438,2]
[369469305,1751586649277,-460.0,0.00016438,2]
[369469307,1751586649286,-513.96562449,0.00016438,2]
[369469309,1751586649295,-540.0,0.00016438,2]
[369469311,1751586649305,-432.40886648,0.00016438,2]
[369469313,1751586649314,-460.0,0.00016438,2]
[369469315,1751586649323,-460.0,0.00016438,2]
[369469317,1751586649334,-460.0,0.00016438,2]
[369469319,1751586649343,-460.0,0.00016438,2]
[369469321,1751586649352,-460.0,0.00016438,2]
[369469323,1751586649362,-460.0,0.00016438,2]
[369469325,1751586649371,-293.33885912,0.00016438,2]
[369469327,1751586649381,-875.98,0.00016438,2]
[369469329,1751586649391,-460.0,0.00016438,2]
[369469331,1751586649401,-460.0,0.00016438,2]
[369469333,1751586649410,-460.0,0.00016438,2]
[369469335,1751586649420,-173.53476524,0.00016438,2]
[369469337,1751586649430,-460.0,0.00016438,2]
[369469339,1751586649439,-460.0,0.00016438,2]
[369469341,1751586649450,-533.26,0.00016438,2]
[369469343,1751586649460,-460.0,0.00016438,2]
[369469345,1751586649470,-1124.57,0.00016438,2]
[369469347,1751586649480,-601.32,0.00016438,2]
[369469349,1751586649489,-460.0,0.00016438,2]
[369469351,1751586649499,-571.55,0.00016438,2]
[369469353,1751586649508,-2521.75,0.00016438,2]
[369469355,1751586649517,-512.12,0.00016438,2]
[369469357,1751586649527,-460.0,0.00016438,2]
[369469359,1751586649537,-483.06495943,0.00016438,2]
[369469361,1751586649547,-460.0,0.00016438,2]
[369469363,1751586649557,-460.0,0.00016438,2]
[369469366,1751586649566,-460.0,0.00016438,2]
[369469368,1751586649576,-460.0,0.00016438,2]
[369469369,1751586649586,-1561.35,0.00016438,2]
[369469371,1751586649596,-460.0,0.00016438,2]
[369469374,1751586649607,-460.0,0.00016438,2]
[369469376,1751586649616,-460.0,0.00016438,2]
[369469378,1751586649626,-839.62,0.00016438,2]
[369469380,1751586649635,-620.63,0.00016438,2]
[369469382,1751586649644,-2512.53,0.00016438,2]
[369469384,1751586649653,-528.98,0.00016438,2]
[369469386,1751586649662,-460.0,0.00016438,2]
[369469388,1751586649671,-460.0,0.00016438,2]
[369469390,1751586649680,-460.0,0.00016438,2]
[369469392,1751586649689,-460.0,0.00016438,2]
[369469394,1751586649699,-460.0,0.00016438,2]
[369469396,1751586649708,-460.0,0.00016438,2]
[369469398,1751586649717,-1064.42,0.00016438,2]
[369469400,1751586649727,-460.0,0.00016438,2]
[369469401,1751586649738,-580.0,0.00016438,2]
[369469404,1751586649748,-460.0,0.00016438,2]
[369469406,1751586649758,-500.0,0.00016438,2]
[369469408,1751586649767,-460.0,0.00016438,2]
[369469410,1751586649776,-2212.19,0.00016438,2]
[369469412,1751586649785,-460.0,0.00016438,2]
[369469414,1751586649794,-804.78,0.00016438,2]
[369469416,1751586649804,-460.0,0.00016438,2]
[369469418,1751586649813,-460.0,0.00016438,2]
[369469420,1751586649823,-460.0,0.00016438,2]
[369469422,1751586649832,-460.0,0.00016438,2]
[369469424,1751586649842,-460.0,0.00016438,2]
[369469426,1751586649852,-1601.39,0.00016438,2]
[369469428,1751586649861,-460.0,0.00016438,2]
[369469430,1751586649870,-1096.85,0.00016438,2]
[369469432,1751586649879,-460.0,0.00016438,2]
[369469434,1751586649889,-4372.46,0.00016438,2]
[369469436,1751586649899,-460.0,0.00016438,2]
[369469438,1751586649909,-460.0,0.00016438,2]
[369469440,1751586649919,-462.37437474,0.00016438,2]
[369469442,1751586649928,-460.0,0.00016438,2]
[369469444,1751586649937,-726.9,0.00016438,2]
[369469446,1751586649947,-460.0,0.00016438,2]
[369469448,1751586649956,-460.0,0.00016438,2]
[369469450,1751586649965,-1796.98,0.00016438,2]
[369469452,1751586649975,-198.5,0.00016438,2]
[369469454,1751586649984,-2764.69,0.00016438,2]
[369469456,1751586649993,-520.06420144,0.00016438,2]
[369469458,1751586650003,-460.0,0.00016438,2]
[369469460,1751586650013,-468.29,0.00016438,2]
[369469462,1751586650022,-460.0,0.00016438,2]
[369469464,1751586650031,-460.0,0.00016438,2]
[369469466,1751586650040,-540.0,0.00016438,2]
[369469468,1751586650050,-1394.52,0.00016438,2]
[369469470,1751586650058,-460.0,0.00016438,2]
[369469472,1751586650068,-1012.03,0.00016438,2]
[369469474,1751586650077,-460.0,0.00016438,2]
[369469476,1751586650087,-431.24484011,0.00016438,2]
[369469478,1751586650097,-500.0,0.00016438,2]
[369469480,1751586650106,-177.6570982,0.000165,2]
[369469482,1751586650115,-500.0,0.00016711,2]
[369469484,1751586650125,-220.55395288,0.00016711,2]
[369469486,1751586650134,-250.98309932,0.00016711,2]
[369469488,1751586650143,-500.0,0.00016711,2]
[369469491,1751586650153,-336.04492405,0.00016711,2]
[369469493,1751586650163,-500.0,0.00016711,2]
[369469495,1751586650176,-500.0,0.00016711,2]
[369469496,1751586650186,-500.0,0.00016711,2]
[369469499,1751586650195,-500.0,0.00016711,2]
[369469501,1751586650204,-500.0,0.00016711,2]
[369469503,1751586650214,-132177.26652,0.00016711,2]
[369469505,1751586650223,-1259.53048775,0.00016712,2]
[369469507,1751586650232,-14552.71914783,0.00016712,2]
[369469509,1751586650242,-164.821234,0.00016712,2]
[369469511,1751586650251,-151.0,0.00016712,2]
[369469513,1751586650260,-151.0,0.00016712,2]
[369469515,1751586650269,-157.338548,0.00016712,2]
[369469517,1751586650279,-460.0,0.00016712,2]
[369469519,1751586650288,-460.0,0.00016712,2]
[369469521,1751586650297,-460.0,0.00016712,2]
[369469523,1751586650307,-460.0,0.00016712,2]
[369469525,1751586650316,-497.65,0.00016712,2]
[369469527,1751586650325,-151.0,0.00016712,2]
[369469529,1751586650336,-151.0,0.00016712,2]
[369469531,1751586650345,-166.036972,0.00016712,2]
[369469533,1751586650355,-460.0,0.00016712,2]
[369469535,1751586650364,-460.0,0.00016712,2]
[369469537,1751586650374,-460.0,0.00016712,2]
[369469539,1751586650383,-473.13,0.00016712,2]
[369469541,1751586650393,-460.0,0.00016712,2]
[369469543,1751586650403,-460.0,0.00016712,2]
[369469545,1751586650413,-460.0,0.00016712,2]
[369469547,1751586650422,-542.2991149,0.00016712,2]
[369469549,1751586650432,-460.0,0.00016712,2]
[369469551,1751586650442,-628.08,0.00016712,2]
[369469553,1751586650452,-480.57,0.00016712,2]
[369469555,1751586650461,-390.53824902,0.00016712,2]
[369469557,1751586650471,-460.0,0.00016712,2]
[369469559,1751586650480,-460.0,0.00016712,2]
[369469561,1751586650490,-460.0,0.00016712,2]
[369469563,1751586650499,-240.01572637,0.00016712,2]
[369469565,1751586650509,-460.0,0.00016712,2]
[369469567,1751586650518,-460.0,0.00016712,2]
[369469569,1751586650528,-281.50813422,0.00016712,2]
[369469571,1751586650537,-460.0,0.00016712,2]
[369469573,1751586650546,-962.66,0.00016712,2]
[369469575,1751586650556,-596.42,0.00016712,2]
[369469577,1751586650565,-796.47,0.00016712,2]
[369469579,1751586650575,-460.0,0.00016712,2]
[369469581,1751586650585,-460.0,0.00016712,2]
[369469583,1751586650595,-460.0,0.00016712,2]
[369469585,1751586650604,-460.0,0.00016712,2]
[369469588,1751586650614,-460.0,0.00016712,2]
[369469589,1751586650623,-542.1,0.00016712,2]
[369469592,1751586650633,-533.75,0.00016712,2]
[369469594,1751586650643,-460.0,0.00016712,2]
[369469596,1751586650653,-460.0,0.00016712,2]
[369469598,1751586650663,-1400.06,0.00016712,2]
[369469600,1751586650672,-1190.85,0.00016712,2]
[369469602,1751586650682,-460.0,0.00016712,2]
[369469604,1751586650691,-460.0,0.00016712,2]
[369469606,1751586650702,-430.4361999,0.00016712,2]
[369469608,1751586650711,-460.0,0.00016712,2]
[369469610,1751586650721,-2871.17,0.00016712,2]
[369469612,1751586650730,-460.0,0.00016712,2]
[369469614,1751586650740,-460.0,0.00016712,2]
[369469616,1751586650750,-460.0,0.00016712,2]
[369469618,1751586650760,-2064.72,0.00016712,2]
[369469620,1751586650770,-572.02,0.00016712,2]
[369469622,1751586650779,-2491.99,0.00016712,2]
[369469624,1751586650789,-852.31,0.00016712,2]
[369469626,1751586650798,-590.81,0.00016712,2]
[369469628,1751586650807,-470.74,0.00016712,2]
[369469630,1751586650817,-460.0,0.00016712,2]
[369469632,1751586650827,-460.0,0.00016712,2]
[369469634,1751586650836,-460.0,0.00016712,2]
[369469636,1751586650845,-4053.79,0.00016712,2]
[369469638,1751586650855,-585.35,0.00016712,2]
[369469640,1751586650864,-460.0,0.00016712,2]
[369469642,1751586650875,-460.0,0.00016712,2]
[369469644,1751586650885,-875.98,0.00016712,2]
[369469646,1751586650895,-533.26,0.00016712,2]
[369469648,1751586650904,-1124.57,0.00016712,2]
[369469650,1751586650914,-601.32,0.00016712,2]
[369469652,1751586650924,-571.55,0.00016712,2]
[369469654,1751586650934,-2521.75,0.00016712,2]
[369469656,1751586650944,-512.12,0.00016712,2]
[369469658,1751586650953,-460.0,0.00016712,2]
[369469660,1751586650963,-1561.35,0.00016712,2]
[369469662,1751586650975,-460.0,0.00016712,2]
[369469664,1751586650985,-839.62,0.00016712,2]
[369469666,1751586650995,-620.63,0.00016712,2]
[369469668,1751586651004,-2512.53,0.00016712,2]
[369469670,1751586651014,-528.98,0.00016712,2]
[369469672,1751586651024,-460.0,0.00016712,2]
[369469674,1751586651034,-460.0,0.00016712,2]
[369469676,1751586651044,-460.0,0.00016712,2]
[369469679,1751586651054,-460.0,0.00016712,2]
[369469681,1751586651064,-1064.42,0.00016712,2]
[369469683,1751586651073,-460.0,0.00016712,2]
[369469684,1751586651083,-460.0,0.00016712,2]
[369469687,1751586651093,-460.0,0.00016712,2]
[369469689,1751586651103,-2212.19,0.00016712,2]
[369469691,1751586651117,-460.0,0.00016712,2]
[369469693,1751586651128,-804.78,0.00016712,2]
[369469695,1751586651138,-260.44401729,0.00016712,2]
[369469697,1751586651147,-460.0,0.00016712,2]
[369469699,1751586651157,-460.0,0.00016712,2]
[369469701,1751586651168,-1601.39,0.00016712,2]
[369469703,1751586651179,-1096.85,0.00016712,2]
[369469705,1751586651189,-4372.46,0.00016712,2]
[369469707,1751586651199,-151.0,0.00016712,2]
[369469709,1751586651209,-726.9,0.00016712,2]
[369469711,1751586651219,-460.0,0.00016712,2]
[369469713,1751586651229,-1796.98,0.00016712,2]
[369469715,1751586651239,-2764.69,0.00016712,2]
[369469717,1751586651251,-460.0,0.00016712,2]
[369469719,1751586651261,-468.29,0.00016712,2]
[369469721,1751586651271,-460.0,0.00016712,2]
[369469723,1751586651280,-1394.52,0.00016712,2]
[369469725,1751586651290,-460.0,0.00016712,2]
[369469727,1751586651300,-1012.03,0.00016712,2]
[369469729,1751586651309,-460.0,0.00016712,2]
[369469731,1751586651319,-182.051486,0.00016728,2]
[369469733,1751586651328,-182.051486,0.00016728,2]
[369469734,1751586651340,-4856.0,0.00016728,2]
[369469737,1751586651351,-153.0,0.000168,2]
[369469739,1751586651360,-153.0,0.000168,2]
[369469741,1751586651370,-177.6570982,0.000168,2]
[369469743,1751586651379,-575.6969649,0.000168,2]
[369469745,1751586651391,-159.3982008,0.000168,2]
[369469747,1751586651401,-153.0,0.000168,2]
[369469749,1751586651411,-177.6570982,0.000168,2]
[369469751,1751586651421,-159.3982008,0.000168,2]
[369469753,1751586651431,-1151.0092655,0.000168,2]
[369469755,1751586651440,-159.3982008,0.000168,2]
[369469757,1751586651450,-177.6570982,0.000168,2]
[369469759,1751586651459,-575.6969649,0.000168,2]
[369469761,1751586651469,-575.6969649,0.000168,2]
[369469763,1751586651478,-177.6570982,0.000168,2]
[369469765,1751586651488,-154.5820102,0.000168,2]
[369469767,1751586651497,-159.3982008,0.000168,2]
[369469769,1751586651507,-158.723496,0.000168,2]
[369469771,1751586651516,-575.6969649,0.000168,2]
[369469773,1751586651525,-177.6570982,0.000168,2]
[369469775,1751586651535,-177.6570982,0.000168,2]
[369469777,1751586651544,-575.6969649,0.000168,2]
[369469779,1751586651554,-177.6570982,0.000168,2]
[369469781,1751586651563,-574.5277215,0.000168,2]
[369469797,1751586651698,-168.0,0.00016816,2]
[369469799,1751586651709,-151.0,0.00016849,2]
[369469801,1751586651719,-4856.0,0.00016849,2]
[369469803,1751586651728,-3789.8275451,0.000169,2]
[369469805,1751586651738,-1440.961806,0.00016914,2]
[369469807,1751586651748,-1680.0,0.00016953,2]
[369469809,1751586651757,-213.94585247,0.00016957,2]
[369469811,1751586651767,-160.0,0.00016957,2]
[369469813,1751586651776,-230.37558374,0.00016957,2]
[369469815,1751586651785,-847.79783075,0.00016957,2]
[369469817,1751586651795,-160.0,0.00016957,2]
[369469819,1751586651807,-160.0,0.00016957,2]
[369469821,1751586651816,-215.07701991,0.00016957,2]
[369469823,1751586651826,-12575.98004106,0.00016957,2]
[369469825,1751586651836,-160.0,0.00016957,2]
[369469827,1751586651845,-160.0,0.00016957,2]
[369469829,1751586651855,-160.0,0.00016957,2]
[369469831,1751586651865,-837.389109,0.00016957,2]
[369469834,1751586651874,-160.0,0.00016957,2]
[369469836,1751586651884,-168.0,0.00016979,2]
[369469838,1751586651893,-500.0,0.00016985,2]
[369469840,1751586651903,-318.0,0.00016985,2]
[369469842,1751586651912,-318.0,0.00016985,2]
[369469844,1751586651921,-318.0,0.00016985,2]
[369469846,1751586651931,-318.0,0.00016985,2]
[369469847,1751586651940,-318.0,0.00016985,2]
[369469850,1751586651950,-318.0,0.00016985,2]
[369469852,1751586651960,-318.0,0.00016985,2]
[369469854,1751586651969,-318.0,0.00016985,2]
[369469855,1751586651978,-318.0,0.00016985,2]
[369469857,1751586651987,-318.0,0.00016985,2]
[369469859,1751586651997,-318.0,0.00016985,2]
[369469862,1751586652007,-318.0,0.00016985,2]
[369469864,1751586652016,-318.0,0.00016985,2]
[369469866,1751586652026,-318.0,0.00016985,2]
[369469867,1751586652035,-318.0,0.00016985,2]
[369469870,1751586652045,-318.0,0.00016985,2]
[369469871,1751586652055,-318.0,0.00016985,2]
[369469874,1751586652065,-318.0,0.00016985,2]
[369469876,1751586652075,-318.0,0.00016985,2]
[369469878,1751586652085,-318.0,0.00016985,2]
[369469879,1751586652094,-318.0,0.00016985,2]
[369469881,1751586652104,-318.0,0.00016985,2]
[369469883,1751586652113,-318.0,0.00016985,2]
[369469885,1751586652123,-318.0,0.00016985,2]
[369469888,1751586652139,-318.0,0.00016985,2]
[369469890,1751586652148,-318.0,0.00016985,2]
[369469891,1751586652157,-318.0,0.00016985,2]
[369469892,1751586652168,-318.0,0.00016985,2]
[369469893,1751586652179,-318.0,0.00016985,2]
[369469894,1751586652188,-318.0,0.00016985,2]
[369469895,1751586652198,-318.0,0.00016985,2]
[369469896,1751586652207,-318.0,0.00016985,2]
[369469897,1751586652217,-318.0,0.00016985,2]
[369469898,1751586652226,-318.0,0.00016985,2]
[369469899,1751586652235,-318.0,0.00016985,2]
[369469900,1751586652245,-318.0,0.00016985,2]
[369469901,1751586652254,-394.2605898,0.00016985,2]
[369469902,1751586652264,-151.0,0.00016985,2]
[369469903,1751586652273,-151.902315,0.00016986,2]
[369469905,1751586652283,-219.054622,0.00016986,2]
[369469907,1751586652292,-460.0,0.00016986,2]
[369469909,1751586652302,-189.084076,0.00016986,2]
[369469911,1751586652311,-151.0,0.00016986,2]
[369469913,1751586652320,-151.0,0.00016986,2]
[369469915,1751586652329,-460.0,0.00016986,2]
[369469917,1751586652339,-460.0,0.00016986,2]
[369469919,1751586652349,-608.00487168,0.00016986,2]
[369469921,1751586652359,-473.13,0.00016986,2]
[369469924,1751586652370,-460.0,0.00016986,2]
[369469926,1751586652379,-460.0,0.00016986,2]
[369469927,1751586652390,-460.0,0.00016986,2]
[369469930,1751586652399,-628.08,0.00016986,2]
[369469931,1751586652410,-151.0,0.00016986,2]
[369469933,1751586652421,-480.57,0.00016986,2]
[369469936,1751586652432,-179.438963,0.00016986,2]
[369469938,1751586652442,-179.438963,0.00016986,2]
[369469940,1751586652451,-460.0,0.00016986,2]
[369469942,1751586652462,-460.0,0.00016986,2]
[369469944,1751586652471,-460.0,0.00016986,2]
[369469946,1751586652481,-460.0,0.00016986,2]
[369469948,1751586652490,-151.0,0.00016986,2]
[369469950,1751586652500,-460.0,0.00016986,2]
[369469951,1751586652509,-962.66,0.00016986,2]
[369469953,1751586652518,-596.42,0.00016986,2]
[369469956,1751586652528,-796.47,0.00016986,2]
[369469958,1751586652537,-460.0,0.00016986,2]
[369469960,1751586652546,-460.0,0.00016986,2]
[369469962,1751586652556,-460.0,0.00016986,2]
[369469964,1751586652565,-460.0,0.00016986,2]
[369469965,1751586652575,-460.0,0.00016986,2]
[369469968,1751586652585,-542.1,0.00016986,2]
[369469970,1751586652595,-533.75,0.00016986,2]
[369469972,1751586652605,-460.0,0.00016986,2]
[369469974,1751586652615,-460.0,0.00016986,2]
[369469976,1751586652624,-1400.06,0.00016986,2]
[369469978,1751586652634,-1190.85,0.00016986,2]
[369469980,1751586652643,-460.0,0.00016986,2]
[369469982,1751586652653,-460.0,0.00016986,2]
[369469984,1751586652662,-460.0,0.00016986,2]
[369469986,1751586652672,-2871.17,0.00016986,2]
[369469988,1751586652681,-460.0,0.00016986,2]
[369469990,1751586652690,-460.0,0.00016986,2]
[369469992,1751586652699,-460.0,0.00016986,2]
[369469994,1751586652709,-2064.72,0.00016986,2]
[369469996,1751586652718,-572.02,0.00016986,2]
[369469998,1751586652727,-2491.99,0.00016986,2]
[369470000,1751586652736,-852.31,0.00016986,2]
[369470002,1751586652746,-470.74,0.00016986,2]
[369470003,1751586652755,-460.0,0.00016986,2]
[369470005,1751586652764,-460.0,0.00016986,2]
[369470007,1751586652776,-4053.79,0.00016986,2]
[369470009,1751586652785,-585.35,0.00016986,2]
[369470012,1751586652796,-460.0,0.00016986,2]
[369470013,1751586652805,-460.0,0.00016986,2]
[369470016,1751586652815,-875.98,0.00016986,2]
[369470018,1751586652825,-533.26,0.00016986,2]
[369470020,1751586652835,-1124.57,0.00016986,2]
[369470022,1751586652844,-601.32,0.00016986,2]
[369470024,1751586652855,-2521.75,0.00016986,2]
[369470026,1751586652864,-571.55,0.00016986,2]
[369470028,1751586652874,-512.12,0.00016986,2]
[369470030,1751586652883,-460.0,0.00016986,2]
[369470031,1751586652894,-1561.35,0.00016986,2]
[369470034,1751586652903,-460.0,0.00016986,2]
[369470036,1751586652914,-839.62,0.00016986,2]
[369470037,1751586652923,-620.63,0.00016986,2]
[369470040,1751586652936,-2512.53,0.00016986,2]
[369470042,1751586652948,-528.98,0.00016986,2]
[369470043,1751586652958,-460.0,0.00016986,2]
[369470045,1751586652968,-460.0,0.00016986,2]
[369470047,1751586652978,-460.0,0.00016986,2]
[369470049,1751586652989,-460.0,0.00016986,2]
[369470051,1751586652999,-1064.42,0.00016986,2]
[369470053,1751586653009,-460.0,0.00016986,2]
[369470055,1751586653019,-460.0,0.00016986,2]
[369470057,1751586653028,-460.0,0.00016986,2]
[369470059,1751586653037,-2212.19,0.00016986,2]
[369470061,1751586653047,-460.0,0.00016986,2]
[369470063,1751586653056,-804.78,0.00016986,2]
[369470065,1751586653065,-460.0,0.00016986,2]
[369470067,1751586653075,-460.0,0.00016986,2]
[369470069,1751586653085,-1601.39,0.00016986,2]
[369470072,1751586653095,-1096.85,0.00016986,2]
[369470073,1751586653105,-4372.46,0.00016986,2]
[369470075,1751586653115,-182.051486,0.00016986,2]
[369470078,1751586653125,-182.051486,0.00016986,2]
[369470080,1751586653134,-726.9,0.00016986,2]
[369470081,1751586653143,-460.0,0.00016986,2]
[369470083,1751586653153,-1796.98,0.00016986,2]
[369470085,1751586653163,-2764.69,0.00016986,2]
[369470087,1751586653179,-460.0,0.00016986,2]
[369470090,1751586653189,-468.29,0.00016986,2]
[369470092,1751586653200,-234.59276392,0.00016986,2]
[369470093,1751586653210,-1394.52,0.00016986,2]
[369470096,1751586653220,-460.0,0.00016986,2]
[369470098,1751586653230,-1012.03,0.00016986,2]
[369470100,1751586653240,-153.0,0.00017,2]